fUST/lending_fUST_20250221
["ID","MTS","AMOUNT","RATE_DAILY","PERIOD"]
[353893729,1740115849437,-1302.9,0.00014438,2]
[353893731,1740115849446,-3798.4,0.00014438,2]
[353893733,1740115849455,-631.16,0.00014438,2]
[353893735,1740115849465,-500.0,0.00014438,2]
[353893737,1740115849475,-500.0,0.00014438,2]
[353893739,1740115849484,-500.0,0.00014438,2]
[353893741,1740115849495,-600.0,0.00014438,2]
[353893743,1740115849504,-160.0,0.00014473,4]
[353893745,1740115849513,-151.0,0.000145,2]
[353893747,1740115849523,-151.0,0.000145,2]
[353893749,1740115849533,-500.0,0.0001452,2]
[353893751,1740115849542,-500.0,0.0001452,2]
[353893752,1740115849551,-344.4147945,0.0001452,2]
[353893753,1740115849560,-600.81,0.0001452,2]
[353893754,1740115849570,-500.0,0.0001452,2]
[353893755,1740115849580,-500.0,0.0001452,2]
[353893756,1740115849590,-500.0,0.0001452,2]
[353893757,1740115849599,-500.0,0.0001452,2]
[353893758,1740115849609,-500.0,0.0001452,2]
[353893759,1740115849619,-741.18,0.0001452,2]
[353893760,1740115849628,-744.78,0.0001452,2]
[353893761,1740115849638,-500.0,0.0001452,2]
[353893762,1740115849647,-553.32,0.0001452,2]
[353893763,1740115849657,-500.0,0.0001452,2]
[353893764,1740115849666,-1600.11,0.0001452,2]
[353893765,1740115849676,-500.0,0.0001452,2]
[353893766,1740115849685,-500.0,0.0001452,2]
[353893767,1740115849695,-500.0,0.0001452,2]
[353893768,1740115849705,-500.0,0.0001452,2]
[353893769,1740115849715,-500.0,0.0001452,2]
[353893770,1740115849726,-1454.42,0.0001452,2]
[353893771,1740115849735,-358.85536298,0.0001452,2]
[353893772,1740115849745,-1777.32,0.0001452,2]
[353893773,1740115849754,-11375.87,0.0001452,2]
[353893774,1740115849765,-971.67,0.0001452,2]
[353893776,1740115849774,-500.0,0.0001452,2]
[353893778,1740115849784,-5536.68,0.0001452,2]
[353893780,1740115849793,-500.0,0.0001452,2]
[353893782,1740115849803,-744.1,0.0001452,2]
[353893784,1740115849812,-840.94,0.0001452,2]
[353893786,1740115849822,-538.42,0.0001452,2]
[353893788,1740115849831,-24143.41,0.0001452,2]
[353893790,1740115849841,-1451.35,0.0001452,2]
[353893792,1740115849851,-2681.23,0.0001452,2]
[353893793,1740115849860,-932.34,0.0001452,2]
[353893795,1740115849871,-500.0,0.0001452,2]
[353893797,1740115849882,-1255.8,0.0001452,2]
[353893799,1740115849891,-500.0,0.0001452,2]
[353893801,1740115849901,-2533.2,0.0001452,2]
[353893803,1740115849910,-880.61,0.0001452,2]
[353893804,1740115849921,-4435.79,0.0001452,2]
[353893805,1740115849930,-500.0,0.0001452,2]
[353893806,1740115849940,-10423.0,0.0001452,2]
[353893807,1740115849950,-1322.53,0.0001452,2]
[353893808,1740115849959,-853.18,0.0001452,2]
[353893809,1740115849969,-2335.39,0.0001452,2]
[353893810,1740115849979,-1492.55,0.0001452,2]
[353893811,1740115849989,-793.94,0.0001452,2]
[353893812,1740115849999,-1361.22,0.0001452,2]
[353893813,1740115850009,-500.0,0.0001452,2]
[353893814,1740115850109,-906.98,0.0001452,2]
[353893815,1740115850119,-2724.98,0.0001452,2]
[353893816,1740115850129,-724.75,0.0001452,2]
[353893817,1740115850139,-559.46,0.0001452,2]
[353893818,1740115850149,-580.7,0.0001452,2]
[353893819,1740115850159,-1354.21,0.0001452,2]
[353893820,1740115850169,-500.0,0.0001452,2]
[353893821,1740115850179,-500.0,0.0001452,2]
[353893822,1740115850188,-1233.05,0.0001452,2]
[353893823,1740115850197,-1963.15,0.0001452,2]
[353893824,1740115850207,-500.0,0.0001452,2]
[353893825,1740115850216,-1302.9,0.0001452,2]
[353893826,1740115850226,-3798.4,0.0001452,2]
[353893827,1740115850235,-631.16,0.0001452,2]
[353893828,1740115850245,-500.0,0.0001452,2]
[353893829,1740115850254,-500.0,0.0001452,2]
[353893830,1740115850264,-168.40801011,0.00014548,2]
[353893831,1740115850274,-151.0,0.000146,2]
[353893832,1740115850284,-500.0,0.00014602,2]
[353893833,1740115850293,-500.0,0.00014602,2]
[353893834,1740115850303,-600.81,0.00014602,2]
[353893835,1740115850312,-500.0,0.00014602,2]
[353893836,1740115850322,-500.0,0.00014602,2]
[353893837,1740115850331,-500.0,0.00014602,2]
[353893838,1740115850341,-500.0,0.00014602,2]
[353893839,1740115850350,-500.0,0.00014602,2]
[353893840,1740115850360,-741.18,0.00014602,2]
[353893841,1740115850370,-744.78,0.00014602,2]
[353893842,1740115850379,-500.0,0.00014602,2]
[353893843,1740115850389,-553.32,0.00014602,2]
[353893844,1740115850398,-500.0,0.00014602,2]
[353893845,1740115850407,-1600.11,0.00014602,2]
[353893846,1740115850417,-500.0,0.00014602,2]
[353893847,1740115850426,-500.0,0.00014602,2]
[353893848,1740115850435,-441.20485915,0.00014602,2]
[353893849,1740115850445,-500.0,0.00014602,2]
[353893850,1740115850454,-500.0,0.00014602,2]
[353893851,1740115850463,-1454.42,0.00014602,2]
[353893852,1740115850473,-1777.32,0.00014602,2]
[353893853,1740115850482,-11375.87,0.00014602,2]
[353893854,1740115850491,-971.67,0.00014602,2]
[353893855,1740115850500,-500.0,0.00014602,2]
[353893856,1740115850510,-5536.68,0.00014602,2]
[353893857,1740115850519,-500.0,0.00014602,2]
[353893858,1740115850529,-744.1,0.00014602,2]
[353893859,1740115850541,-840.94,0.00014602,2]
[353893860,1740115850552,-538.42,0.00014602,2]
[353893861,1740115850561,-24143.41,0.00014602,2]
[353893862,1740115850571,-1451.35,0.00014602,2]
[353893863,1740115850580,-2681.23,0.00014602,2]
[353893864,1740115850589,-932.34,0.00014602,2]
[353893865,1740115850599,-500.0,0.00014602,2]
[353893866,1740115850608,-1255.8,0.00014602,2]
[353893867,1740115850617,-500.0,0.00014602,2]
[353893868,1740115850626,-2533.2,0.00014602,2]
[353893869,1740115850636,-880.61,0.00014602,2]
[353893870,1740115850645,-4435.79,0.00014602,2]
[353893871,1740115850654,-500.0,0.00014602,2]
[353893872,1740115850663,-10423.0,0.00014602,2]
[353893873,1740115850673,-1322.53,0.00014602,2]
[353893874,1740115850682,-853.18,0.00014602,2]
[353893875,1740115850691,-2335.39,0.00014602,2]
[353893876,1740115850701,-1492.55,0.00014602,2]
[353893877,1740115850710,-793.94,0.00014602,2]
[353893878,1740115850719,-1361.22,0.00014602,2]
[353893879,1740115850728,-500.0,0.00014602,2]
[353893880,1740115850737,-906.98,0.00014602,2]
[353893881,1740115850746,-2724.98,0.00014602,2]
[353893882,1740115850755,-724.75,0.00014602,2]
[353893883,1740115850764,-559.46,0.00014602,2]
[353893884,1740115850774,-580.7,0.00014602,2]
[353893885,1740115850783,-1354.21,0.00014602,2]
[353893886,1740115850792,-500.0,0.00014602,2]
[353893887,1740115850801,-1233.05,0.00014602,2]
[353893888,1740115850811,-500.0,0.00014602,2]
[353893889,1740115850820,-1963.15,0.00014602,2]
[353893890,1740115850829,-500.0,0.00014602,2]
[353893891,1740115850838,-1302.9,0.00014602,2]
[353893892,1740115850847,-3798.4,0.00014602,2]
[353893893,1740115850857,-631.16,0.00014602,2]
[353893894,1740115850866,-500.0,0.00014602,2]
[353893895,1740115850875,-500.0,0.00014602,2]
[353893896,1740115850884,-3448.28708649,0.00014667,2]
[353893897,1740115850893,-500.38433033,0.00014673,2]
[353893898,1740115850902,-500.0,0.00014684,2]
[353893899,1740115850911,-500.0,0.00014684,2]
[353893900,1740115850921,-600.81,0.00014684,2]
[353893901,1740115850930,-464.68147116,0.00014684,2]
[353893902,1740115850939,-500.0,0.00014684,2]
[353893903,1740115850948,-500.0,0.00014684,2]
[353893904,1740115850958,-500.0,0.00014684,2]
[353893905,1740115850968,-500.0,0.00014684,2]
[353893906,1740115850978,-741.18,0.00014684,2]
[353893907,1740115850988,-744.78,0.00014684,2]
[353893908,1740115851000,-500.0,0.00014684,2]
[353893909,1740115851010,-553.32,0.00014684,2]
[353893910,1740115851020,-500.0,0.00014684,2]
[353893911,1740115851029,-1600.11,0.00014684,2]
[353893912,1740115851039,-500.0,0.00014684,2]
[353893913,1740115851050,-500.0,0.00014684,2]
[353893914,1740115851060,-500.0,0.00014684,2]
[353893915,1740115851070,-500.0,0.00014684,2]
[353893916,1740115851080,-1454.42,0.00014684,2]
[353893917,1740115851089,-1777.32,0.00014684,2]
[353893918,1740115851098,-11375.87,0.00014684,2]
[353893919,1740115851107,-971.67,0.00014684,2]
[353893920,1740115851116,-500.0,0.00014684,2]
[353893921,1740115851125,-5536.68,0.00014684,2]
[353893922,1740115851134,-500.0,0.00014684,2]
[353893923,1740115851143,-744.1,0.00014684,2]
[353893924,1740115851152,-840.94,0.00014684,2]
[353893925,1740115851161,-538.42,0.00014684,2]
[353893926,1740115851171,-24143.41,0.00014684,2]
[353893927,1740115851179,-1451.35,0.00014684,2]
[353893928,1740115851188,-2681.23,0.00014684,2]
[353893929,1740115851198,-932.34,0.00014684,2]
[353893930,1740115851207,-500.0,0.00014684,2]
[353893931,1740115851217,-1255.8,0.00014684,2]
[353893932,1740115851226,-500.0,0.00014684,2]
[353893933,1740115851235,-2533.2,0.00014684,2]
[353893934,1740115851244,-880.61,0.00014684,2]
[353893935,1740115851253,-4435.79,0.00014684,2]
[353893936,1740115851263,-500.0,0.00014684,2]
[353893937,1740115851272,-10423.0,0.00014684,2]
[353893938,1740115851281,-1322.53,0.00014684,2]
[353893939,1740115851291,-853.18,0.00014684,2]
[353893940,1740115851300,-2335.39,0.00014684,2]
[353893941,1740115851309,-1492.55,0.00014684,2]
[353893942,1740115851319,-793.94,0.00014684,2]
[353893943,1740115851328,-1361.22,0.00014684,2]
[353893944,1740115851337,-500.0,0.00014684,2]
[353893945,1740115851347,-906.98,0.00014684,2]
[353893946,1740115851356,-2724.98,0.00014684,2]
[353893947,1740115851365,-724.75,0.00014684,2]
[353893948,1740115851374,-559.46,0.00014684,2]
[353893949,1740115851383,-580.7,0.00014684,2]
[353893950,1740115851392,-1354.21,0.00014684,2]
[353893951,1740115851401,-500.0,0.00014684,2]
[353893952,1740115851411,-1233.05,0.00014684,2]
[353893953,1740115851420,-500.0,0.00014684,2]
[353893954,1740115851429,-1963.15,0.00014684,2]
[353893955,1740115851438,-500.0,0.00014684,2]
[353893956,1740115851447,-1302.9,0.00014684,2]
[353893957,1740115851457,-3798.4,0.00014684,2]
[353893958,1740115851466,-631.16,0.00014684,2]
[353893959,1740115851475,-500.0,0.00014684,2]
[353893960,1740115851484,-500.0,0.00014684,2]
[353893961,1740115851494,-151.0,0.000147,2]
[353893962,1740115851502,-1000.96222818,0.00014721,2]
[353893963,1740115851511,-501.3968598,0.00014721,2]
[353893964,1740115851520,-1010.21662981,0.00014721,2]
[353893965,1740115851529,-1000.0,0.00014721,2]
[353893966,1740115851538,-501.07938361,0.00014721,2]
[353893967,1740115851547,-1000.0,0.00014721,2]
[353893968,1740115851556,-500.8256556,0.00014721,2]
[353893969,1740115851565,-500.99293683,0.00014721,2]
[353893970,1740115851574,-279.99377584,0.00014721,2]
[353893971,1740115851584,-1000.0,0.00014721,2]
[353893972,1740115851592,-1000.0,0.00014721,2]
[353893973,1740115851601,-517.12891589,0.00014721,2]
[353893974,1740115851610,-168.40801011,0.0001474,2]
[353893975,1740115851620,-307.0,0.0001474,2]
[353893976,1740115851629,-185.64164412,0.00014767,2]
[353893977,1740115851638,-500.0,0.00014767,2]
[353893978,1740115851650,-600.81,0.00014767,2]
[353893979,1740115851659,-500.0,0.00014767,2]
[353893980,1740115851669,-500.0,0.00014767,2]
[353893981,1740115851678,-500.0,0.00014767,2]
[353893982,1740115851701,-500.0,0.00014767,2]
[353893983,1740115851711,-741.18,0.00014767,2]
[353893984,1740115851722,-744.78,0.00014767,2]
[353893985,1740115851731,-559.23830574,0.00014767,2]
[353893986,1740115851740,-553.32,0.00014767,2]
[353893987,1740115851749,-500.0,0.00014767,2]
[353893988,1740115851758,-887.52843412,0.00014767,2]
[353893989,1740115851978,-500.0,0.00013698,2]
[353893990,1740115851987,-500.0,0.0001378,2]
[353893991,1740115852001,-241.17263443,0.00013863,2]
[353893992,1740115852014,-258.82736557,0.00013863,2]
[353893993,1740115852023,-500.0,0.00013945,2]
[353893994,1740115852033,-500.0,0.00014438,2]
[353893995,1740115852044,-374.74986051,0.0001452,2]
[353893996,1740115852053,-712.58156588,0.00014767,2]
[353893997,1740115852062,-531.07547902,0.00014767,2]
[353893998,1740115852073,-500.0,0.00014767,2]
[353893999,1740115852082,-500.0,0.00014767,2]
[353894000,1740115852091,-500.0,0.00014767,2]
[353894001,1740115852101,-1777.32,0.00014767,2]
[353894002,1740115852111,-11375.87,0.00014767,2]
[353894003,1740115852121,-971.67,0.00014767,2]
[353894004,1740115852131,-609.84795924,0.00014767,2]
[353894005,1740115852141,-5536.68,0.00014767,2]
[353894006,1740115852151,-500.0,0.00014767,2]
[353894007,1740115852160,-744.1,0.00014767,2]
[353894008,1740115852169,-840.94,0.00014767,2]
[353894009,1740115852273,-538.42,0.00014767,2]
[353894010,1740115852283,-24143.41,0.00014767,2]
[353894011,1740115852292,-1451.35,0.00014767,2]
[353894012,1740115852301,-2681.23,0.00014767,2]
[353894013,1740115852311,-932.34,0.00014767,2]
[353894014,1740115852321,-616.57306106,0.00014767,2]
[353894015,1740115852330,-1255.8,0.00014767,2]
[353894016,1740115852340,-500.0,0.00014767,2]
[353894017,1740115852349,-2533.2,0.00014767,2]
[353894018,1740115852360,-880.61,0.00014767,2]
[353894019,1740115852370,-4435.79,0.00014767,2]
[353894020,1740115852379,-500.0,0.00014767,2]
[353894021,1740115852389,-10423.0,0.00014767,2]
[353894022,1740115852398,-1322.53,0.00014767,2]
[353894023,1740115852407,-853.18,0.00014767,2]
[353894024,1740115852417,-2335.39,0.00014767,2]
[353894025,1740115852427,-1492.55,0.00014767,2]
[353894026,1740115852437,-793.94,0.00014767,2]
[353894027,1740115852446,-1361.22,0.00014767,2]
[353894028,1740115852455,-500.0,0.00014767,2]
[353894029,1740115852464,-906.98,0.00014767,2]
[353894030,1740115852474,-2724.98,0.00014767,2]
[353894031,1740115852484,-724.75,0.00014767,2]
[353894032,1740115852493,-559.46,0.00014767,2]
[353894033,1740115852503,-580.7,0.00014767,2]
[353894034,1740115852513,-1354.21,0.00014767,2]
[353894035,1740115852523,-500.0,0.00014767,2]
[353894036,1740115852532,-1233.05,0.00014767,2]
[353894037,1740115852542,-500.0,0.00014767,2]
[353894038,1740115852552,-1963.15,0.00014767,2]
[353894039,1740115852562,-500.0,0.00014767,2]
[353894040,1740115852571,-1302.9,0.00014767,2]
[353894041,1740115852581,-3798.4,0.00014767,2]
[353894042,1740115852590,-631.16,0.00014767,2]
[353894043,1740115852600,-511.89918106,0.00014767,2]
[353894044,1740115852610,-500.0,0.00014767,2]
[353894045,1740115852620,-420.0,0.00014796,2]
[353894046,1740115852629,-151.0,0.000148,2]
[353894047,1740115852639,-600.0,0.00014807,2]
[353894048,1740115852648,-500.0,0.00014849,2]
[353894049,1740115852657,-600.81,0.00014849,2]
[353894050,1740115852667,-500.0,0.00014849,2]
[353894051,1740115852676,-376.14953576,0.00014849,2]
[353894052,1740115852685,-500.0,0.00014849,2]
[353894053,1740115852694,-462.96857932,0.00014849,2]
[353894054,1740115852704,-741.18,0.00014849,2]
[353894055,1740115852714,-744.78,0.00014849,2]
[353894056,1740115852723,-553.32,0.00014849,2]
[353894057,1740115852733,-500.0,0.00014849,2]
[353894058,1740115852743,-1600.11,0.00014849,2]
[353894059,1740115852752,-500.0,0.00014849,2]
[353894060,1740115852762,-500.0,0.00014849,2]
[353894061,1740115852772,-500.0,0.00014849,2]
[353894062,1740115852781,-1777.32,0.00014849,2]
[353894063,1740115852791,-11375.87,0.00014849,2]
[353894064,1740115852800,-971.67,0.00014849,2]
[353894065,1740115852810,-5536.68,0.00014849,2]
[353894066,1740115852819,-500.0,0.00014849,2]
[353894067,1740115852829,-744.1,0.00014849,2]
[353894068,1740115852839,-840.94,0.00014849,2]
[353894069,1740115852848,-538.42,0.00014849,2]
[353894070,1740115852858,-24143.41,0.00014849,2]
[353894071,1740115852867,-1451.35,0.00014849,2]
[353894072,1740115852876,-2681.23,0.00014849,2]
[353894073,1740115852886,-932.34,0.00014849,2]
[353894074,1740115852896,-1255.8,0.00014849,2]
[353894075,1740115852905,-500.0,0.00014849,2]
[353894076,1740115852915,-2533.2,0.00014849,2]
[353894077,1740115852924,-880.61,0.00014849,2]
[353894078,1740115852934,-289.336,0.00014849,2]
[353894079,1740115852944,-4435.79,0.00014849,2]
[353894080,1740115852955,-500.0,0.00014849,2]
[353894081,1740115852964,-10423.0,0.00014849,2]
[353894082,1740115852974,-1322.53,0.00014849,2]
[353894083,1740115852984,-151.0,0.00014849,2]
[353894084,1740115852994,-853.18,0.00014849,2]
[353894085,1740115853007,-2335.39,0.00014849,2]
[353894086,1740115853016,-1492.55,0.00014849,2]
[353894087,1740115853026,-793.94,0.00014849,2]
[353894088,1740115853036,-1361.22,0.00014849,2]
[353894089,1740115853047,-199.196782,0.00014849,2]
[353894090,1740115853056,-500.0,0.00014849,2]
[353894091,1740115853066,-906.98,0.00014849,2]
[353894092,1740115853078,-151.0,0.00014849,2]
[353894093,1740115853087,-212.750623,0.00014849,2]
[353894094,1740115853097,-2724.98,0.00014849,2]
[353894095,1740115853106,-212.750623,0.00014849,2]
[353894096,1740115853115,-724.75,0.00014849,2]
[353894097,1740115853125,-559.46,0.00014849,2]
[353894098,1740115853134,-580.7,0.00014849,2]
[353894099,1740115853144,-1354.21,0.00014849,2]
[353894100,1740115853153,-500.0,0.00014849,2]
[353894101,1740115853162,-1233.05,0.00014849,2]
[353894102,1740115853171,-500.0,0.00014849,2]
[353894103,1740115853181,-1963.15,0.00014849,2]
[353894104,1740115853191,-153.030156,0.00014849,2]
[353894105,1740115853201,-312.56967895,0.00014849,2]
[353894106,1740115853210,-1302.9,0.00014849,2]
[353894107,1740115853220,-3798.4,0.00014849,2]
[353894108,1740115853229,-631.16,0.00014849,2]
[353894109,1740115853239,-514.31133253,0.00014849,2]
[353894110,1740115853248,-151.0,0.00014849,2]
[353894111,1740115853257,-160.0,0.00014867,5]
[353894112,1740115853267,-500.5595125,0.00014873,2]
[353894113,1740115853276,-500.0,0.00014873,2]
[353894114,1740115853285,-500.0,0.00014873,2]
[353894115,1740115853294,-160.0,0.00014899,2]
[353894116,1740115853304,-28020.09638514,0.00014899,2]
[353894117,1740115853314,-55145.9122492,0.000149,5]
[353894118,1740115853323,-9044.7251568,0.000149,5]
[353894119,1740115853332,-3897.69,0.000149,2]
[353894120,1740115853343,-161.522347,0.000149,2]
[353894121,1740115853351,-161.522347,0.000149,2]
[353894122,1740115853361,-151.0,0.000149,2]
[353894123,1740115853370,-151.0,0.000149,2]
[353894124,1740115853379,-619263.913096,0.000149,2]
[353894125,1740115853389,-151.0,0.000149,2]
[353894126,1740115853398,-8952.42793938,0.000149,2]
[353894127,1740115853408,-151.0,0.000149,2]
[353894128,1740115853417,-212.750623,0.000149,2]
[353894129,1740115853426,-212.750623,0.000149,2]
[353894130,1740115853436,-577.83376116,0.00014923,2]
[353894131,1740115853446,-160.0,0.0001493,2]
[353894132,1740115853455,-500.0,0.00014931,2]
[353894133,1740115853465,-600.81,0.00014931,2]
[353894134,1740115853474,-458.47733376,0.00014931,2]
[353894135,1740115853484,-500.0,0.00014931,2]
[353894136,1740115853494,-741.18,0.00014931,2]
[353894137,1740115853503,-744.78,0.00014931,2]
[353894138,1740115853512,-553.32,0.00014931,2]
[353894139,1740115853521,-402.27380112,0.00014931,2]
[353894140,1740115853531,-1600.11,0.00014931,2]
[353894141,1740115853539,-500.0,0.00014931,2]
[353894142,1740115853549,-500.0,0.00014931,2]
[353894143,1740115853557,-500.0,0.00014931,2]
[353894144,1740115853567,-1777.32,0.00014931,2]
[353894145,1740115853576,-11375.87,0.00014931,2]
[353894146,1740115853586,-971.67,0.00014931,2]
[353894147,1740115853595,-5536.68,0.00014931,2]
[353894148,1740115853604,-152.53063581,0.00014931,2]
[353894149,1740115853614,-744.1,0.00014931,2]
[353894150,1740115853623,-840.94,0.00014931,2]
[353894151,1740115853632,-538.42,0.00014931,2]
[353894152,1740115853641,-24143.41,0.00014931,2]
[353894153,1740115853651,-1451.35,0.00014931,2]
[353894154,1740115853660,-2681.23,0.00014931,2]
[353894155,1740115853669,-932.34,0.00014931,2]
[353894156,1740115853679,-1255.8,0.00014931,2]
[353894157,1740115853689,-500.0,0.00014931,2]
[353894158,1740115853698,-2533.2,0.00014931,2]
[353894159,1740115853708,-880.61,0.00014931,2]
[353894160,1740115853717,-4435.79,0.00014931,2]
[353894161,1740115853726,-500.0,0.00014931,2]
[353894162,1740115853736,-10423.0,0.00014931,2]
[353894163,1740115853745,-1322.53,0.00014931,2]
[353894164,1740115853755,-853.18,0.00014931,2]
[353894165,1740115853764,-2335.39,0.00014931,2]
[353894166,1740115853773,-1492.55,0.00014931,2]
[353894167,1740115853783,-793.94,0.00014931,2]
[353894168,1740115853792,-1361.22,0.00014931,2]
[353894169,1740115853801,-500.0,0.00014931,2]
[353894170,1740115853810,-906.98,0.00014931,2]
[353894171,1740115853819,-2724.98,0.00014931,2]
[353894172,1740115853829,-724.75,0.00014931,2]
[353894173,1740115853839,-559.46,0.00014931,2]
[353894174,1740115853848,-580.7,0.00014931,2]
[353894175,1740115853858,-1354.21,0.00014931,2]
[353894176,1740115853867,-500.0,0.00014931,2]
[353894177,1740115853877,-1233.05,0.00014931,2]
[353894178,1740115853887,-500.0,0.00014931,2]
[353894179,1740115853896,-1963.15,0.00014931,2]
[353894180,1740115853905,-1302.9,0.00014931,2]
[353894181,1740115853915,-3798.4,0.00014931,2]
[353894182,1740115853924,-631.16,0.00014931,2]
[353894183,1740115853934,-606.11449744,0.00014961,2]
[353894184,1740115853943,-198.0,0.00015,3]
[353894185,1740115853952,-198.0,0.00015,14]
[353894186,1740115853961,-198.0,0.00015,14]
[353894187,1740115853971,-198.0,0.00015,14]
[353894188,1740115853979,-193.36259432,0.00015,3]
[353894189,1740115853989,-160.38987825,0.00015012,2]
[353894190,1740115854003,-500.0,0.00015013,2]
[353894191,1740115854013,-600.81,0.00015013,2]
[353894192,1740115854023,-500.0,0.00015013,2]
[353894193,1740115854033,-741.18,0.00015013,2]
[353894194,1740115854043,-744.78,0.00015013,2]
[353894195,1740115854053,-553.32,0.00015013,2]
[353894196,1740115854062,-1600.11,0.00015013,2]
[353894197,1740115854073,-500.0,0.00015013,2]
[353894198,1740115854082,-500.0,0.00015013,2]
[353894199,1740115854092,-500.0,0.00015013,2]
[353894200,1740115854101,-1777.32,0.00015013,2]
[353894201,1740115854112,-11375.87,0.00015013,2]
[353894202,1740115854123,-971.67,0.00015013,2]
[353894203,1740115854133,-5536.68,0.00015013,2]
[353894204,1740115854143,-744.1,0.00015013,2]
[353894205,1740115854154,-538.42,0.00015013,2]
[353894206,1740115854164,-15019.49179237,0.00015013,2]
[353894207,1740115854240,-500.0,0.00014027,2]
[353894208,1740115854251,-500.0,0.00014109,2]
[353894209,1740115854262,-352.79,0.00014191,2]
[353894210,1740115854271,-9123.91820763,0.00015013,2]
[353894211,1740115854279,-812.30880761,0.00015013,2]
[353894212,1740115854291,-639.04119239,0.00015013,2]
[353894213,1740115854301,-2681.23,0.00015013,2]
[353894214,1740115854309,-932.34,0.00015013,2]
[353894215,1740115854319,-1255.8,0.00015013,2]
[353894216,1740115854331,-500.0,0.00015013,2]
[353894217,1740115854425,-2228.74745145,0.00015013,2]
[353894218,1740115854438,-304.45254855,0.00015013,2]
[353894219,1740115854447,-880.61,0.00015013,2]
[353894220,1740115854458,-1149.465988,0.00015013,2]
[353894221,1740115854471,-947.12043903,0.00015013,2]
[353894222,1740115854482,-749.58507329,0.00015013,2]
[353894223,1740115854518,-500.0,0.00013698,2]
[353894224,1740115854528,-476.0,0.0001378,2]
[353894226,1740115990364,287.371457,9.041e-05,2]
[353894326,1740117038460,-2882.2560545,0.00012719,2]
[353894328,1740117038469,-500.1869933,0.00012822,2]
[353894330,1740117038479,-300.0,0.00013697,2]
[353894332,1740117038489,-500.0,0.00013698,2]
[353894334,1740117038498,-500.0,0.00013698,2]
[353894336,1740117038507,-500.0,0.00013698,2]
[353894338,1740117038517,-500.0,0.00013698,2]
[353894340,1740117038528,-500.0,0.00013698,2]
[353894342,1740117038539,-500.0,0.00013698,2]
[353894344,1740117038548,-500.0,0.00013698,2]
[353894346,1740117038558,-500.0,0.00013698,2]
[353894348,1740117038567,-500.0,0.00013698,2]
[353894350,1740117038577,-500.0,0.00013698,2]
[353894352,1740117038587,-500.0,0.00013698,2]
[353894354,1740117038596,-500.0,0.00013698,2]
[353894356,1740117038607,-500.0,0.00013698,2]
[353894358,1740117038617,-500.0,0.00013698,2]
[353894360,1740117038626,-500.0,0.00013698,2]
[353894362,1740117038635,-500.0,0.00013698,2]
[353894364,1740117038644,-500.0,0.00013698,2]
[353894366,1740117038653,-500.0,0.00013698,2]
[353894368,1740117038662,-500.0,0.00013698,2]
[353894370,1740117038672,-417.75387677,0.00013698,2]
[353894372,1740117038684,-582.24612323,0.00013698,2]
[353894374,1740117038693,-500.0,0.00013698,2]
[353894376,1740117038704,-236.94851439,0.00013698,2]
[353894378,1740117038715,-263.05148561,0.00013698,2]
[353894380,1740117038725,-500.0,0.00013698,2]